bitfinex/quotes_BTCUSD_20250623
["timestamp","ask_amount","ask_price","bid_price","bid_amount"]
[1750707692658,0.39963696,102930.0,102920.0,0.0274]
[1750707692871,0.39963696,102930.0,102920.0,0.0284]
[1750707693329,0.39963696,102930.0,102910.0,0.005]
[1750707694424,0.39963696,102930.0,102910.0,0.006]
[1750707695266,0.39963696,102930.0,102910.0,0.007]
[1750707696353,0.39963696,102930.0,102910.0,0.0337]
[1750707699846,0.38134085,102920.0,102910.0,0.002]
[1750707700066,0.40448563,102920.0,102910.0,0.002]
[1750707700725,0.40448563,102920.0,102910.0,0.001]
[1750707701186,0.36314478,102920.0,102910.0,0.0259]
[1750707701398,0.36314478,102920.0,102910.0,0.0512]
[1750707701604,0.36314478,102920.0,102910.0,0.0502]
[1750707702504,0.36714478,102920.0,102910.0,0.0502]
[1750707703137,0.37014478,102920.0,102910.0,0.0502]
[1750707703348,0.37014478,102920.0,102910.0,0.0249]
[1750707703818,0.38468563,102920.0,102900.0,0.05183825]
[1750707704028,0.38468563,102920.0,102910.0,0.0251]
[1750707704660,0.40798563,102920.0,102900.0,0.02523825]
[1750707704893,0.40398563,102920.0,102900.0,0.02523825]
[1750707705107,0.40798563,102920.0,102900.0,0.05143825]
[1750707705306,0.40398563,102920.0,102900.0,0.05143825]
[1750707705721,0.40798563,102920.0,102900.0,0.05143825]
[1750707706171,0.40698563,102920.0,102900.0,0.05143825]
[1750707706379,0.38468563,102920.0,102900.0,0.05143825]
[1750707707013,0.38468563,102920.0,102910.0,0.0248]
[1750707707227,0.37014478,102920.0,102910.0,0.0248]
[1750707707455,0.37014478,102920.0,102910.0,0.0492]
[1750707708086,0.36614478,102920.0,102910.0,0.0492]
[1750707708530,0.37014478,102920.0,102910.0,0.0492]
[1750707708976,0.36714478,102920.0,102910.0,0.0492]
[1750707709180,0.37014478,102920.0,102910.0,0.0492]
[1750707710262,0.37014478,102920.0,102910.0,0.0248]
[1750707713459,0.37014478,102920.0,102910.0,0.0495]
[1750707713711,0.347,102920.0,102910.0,0.3732945]
[1750707713952,0.007,102920.0,102910.0,0.3732945]
[1750707714672,0.003,102920.0,102910.0,0.3732945]
[1750707714904,0.36195133,102930.0,102920.0,0.20404187]
[1750707715116,0.02195133,102930.0,102920.0,0.15119939]
[1750707715543,0.34,102940.0,102930.0,0.0254]
[1750707715779,0.36320594,102940.0,102930.0,0.0254]
[1750707716228,0.36320594,102940.0,102930.0,0.0479]
[1750707716667,0.02320594,102940.0,102930.0,0.0479]
[1750707717097,0.36449114,102940.0,102930.0,0.0479]
[1750707717283,0.38769708,102940.0,102930.0,0.0479]
[1750707718164,0.04769708,102940.0,102930.0,0.0479]
[1750707718381,0.05169708,102940.0,102930.0,0.0479]
[1750707718811,0.02849114,102940.0,102930.0,0.0479]
[1750707721490,0.02849114,102940.0,102930.0,0.0224]
[1750707721922,0.02859114,102940.0,102930.0,0.0224]
[1750707722371,0.06833199,102940.0,102910.0,0.49714]
[1750707722602,0.09403199,102940.0,102910.0,0.60033939]
[1750707723283,0.09403199,102940.0,102910.0,0.50004]
[1750707723284,0.03854085,102930.0,102910.0,0.50004]
[1750707723524,0.37854085,102930.0,102910.0,0.2991]
[1750707724179,0.40434085,102930.0,102910.0,0.2991]
[1750707724617,0.37854085,102930.0,102910.0,0.2991]
[1750707724832,0.37854085,102930.0,102910.0,0.3232]
[1750707725247,0.37954085,102930.0,102910.0,0.3232]
[1750707725468,0.37954085,102930.0,102910.0,0.0494]
[1750707725686,0.01554085,102930.0,102910.0,0.0494]
[1750707725896,0.01654085,102930.0,102910.0,0.0494]
[1750707727725,0.002,102930.0,102920.0,0.0262]
[1750707728596,0.001,102930.0,102920.0,0.0262]
[1750707728837,0.01454085,102940.0,102920.0,0.0513]
[1750707729479,0.002,102930.0,102920.0,0.0513]
[1750707730609,0.01454085,102940.0,102920.0,0.0513]
[1750707730827,0.01754085,102940.0,102920.0,0.0513]
[1750707731038,1.19081438,102930.0,102920.0,0.0513]
[1750707731818,1.19181438,102930.0,102920.0,0.0513]
[1750707732482,1.19281438,102930.0,102920.0,0.0513]
[1750707733797,1.19281438,102930.0,102910.0,0.15049939]
[1750707734014,0.42540719,102920.0,102910.0,0.15049939]
[1750707735310,0.42540719,102920.0,102910.0,0.15249939]
[1750707735565,0.42540719,102920.0,102910.0,0.0522]
[1750707736206,0.42540719,102920.0,102910.0,0.002]
[1750707736419,1.19081438,102920.0,102910.0,0.002]
[1750707736637,0.76540719,102920.0,102910.0,0.002]
[1750707737104,1.25635523,102920.0,102910.0,0.002]
[1750707737317,1.35665462,102920.0,102910.0,0.003]
[1750707737525,1.37984538,102920.0,102910.0,0.003]
[1750707737951,1.25625523,102910.0,102880.0,0.0554]
[1750707738199,0.76540719,102890.0,102880.0,0.0554]
[1750707740777,0.34,102890.0,102880.0,0.06612006]
[1750707740985,0.42550719,102890.0,102880.0,0.26783864]
[1750707742136,0.42550719,102890.0,102880.0,0.25811887]
[1750707742347,0.42550719,102890.0,102880.0,0.24840124]
[1750707742554,0.42550719,102890.0,102880.0,0.054]
[1750707742754,0.0001,102890.0,102880.0,0.054]
[1750707742980,0.42550719,102890.0,102880.0,0.054]
[1750707743192,0.0001,102890.0,102880.0,0.054]
[1750707743427,0.42550719,102890.0,102880.0,0.054]
[1750707743836,0.42550719,102890.0,102880.0,0.2581213]
[1750707744264,0.42550719,102890.0,102880.0,0.054]
[1750707753390,0.42550719,102890.0,102880.0,0.25812111]
[1750707753602,0.42550719,102890.0,102880.0,0.2581213]
[1750707753819,0.42550719,102890.0,102880.0,0.26784126]
[1750707754029,0.0001,102890.0,102880.0,0.37786052]
[1750707754239,0.76550719,102890.0,102880.0,0.3972996]
[1750707754877,0.3401,102890.0,102880.0,0.3972996]
[1750707755091,0.0001,102890.0,102880.0,0.5728596]
[1750707755302,0.0001,102890.0,102880.0,1.29446679]
[1750707756508,0.0001,102890.0,102880.0,1.29646679]
[1750707756749,0.0001,102890.0,102880.0,1.29546679]
[1750707756995,0.0001,102890.0,102880.0,1.29846679]
[1750707757521,0.0001,102890.0,102880.0,0.6974996]
[1750707757739,0.0001,102890.0,102880.0,0.8730196]
[1750707759017,0.0001,102890.0,102880.0,0.6974996]
[1750707759213,0.0001,102890.0,102880.0,0.8729796]
[1750707759664,0.42550719,102890.0,102880.0,0.8729796]
[1750707759872,0.76550719,102890.0,102880.0,0.8631802]
[1750707760086,0.76550719,102890.0,102880.0,0.87289969]
[1750707760303,0.76550719,102890.0,102880.0,0.82430063]
[1750707760515,0.76550719,102890.0,102880.0,0.85345976]
[1750707760726,0.76550719,102890.0,102880.0,0.85345985]
[1750707760914,0.76550719,102890.0,102880.0,0.55725985]
[1750707761133,0.76550719,102890.0,102880.0,0.57669874]
[1750707761366,0.76550719,102890.0,102880.0,0.56697934]
[1750707761803,0.843098,102890.0,102880.0,0.15829939]
[1750707762029,0.843098,102890.0,102880.0,0.54750046]
[1750707762260,0.843098,102890.0,102880.0,0.54750065]
[1750707762467,0.843098,102890.0,102880.0,0.55722052]
[1750707763234,0.843098,102890.0,102880.0,0.56694029]
[1750707763443,0.843098,102890.0,102880.0,0.55722052]
[1750707763692,0.843098,102890.0,102880.0,0.56694029]
[1750707763894,0.843098,102890.0,102880.0,0.55722052]
[1750707764091,0.843098,102890.0,102880.0,0.53778069]
[1750707764302,0.843098,102890.0,102880.0,0.33365939]
[1750707764521,0.843098,102890.0,102880.0,0.34337945]
[1750707764732,0.76550719,102890.0,102880.0,0.34337945]
[1750707765527,0.76550719,102890.0,102880.0,0.10949939]
[1750707766771,0.76550719,102890.0,102880.0,0.10649939]
[1750707766968,0.76550719,102890.0,102880.0,0.10449939]
[1750707767632,0.76550719,102890.0,102880.0,0.15249939]
[1750707769023,0.3401,102890.0,102880.0,0.15249939]
[1750707769227,0.76550719,102890.0,102880.0,0.15249939]
[1750707770996,0.76550719,102890.0,102880.0,0.10449939]
[1750707771405,0.76550719,102890.0,102880.0,0.27969939]
[1750707771607,0.76550719,102890.0,102880.0,0.32849939]
[1750707773728,0.76550719,102890.0,102880.0,0.5326205]
[1750707773944,0.76550719,102890.0,102880.0,0.32849939]
[1750707775099,0.76550719,102890.0,102880.0,0.33821945]
[1750707775308,0.76550719,102890.0,102880.0,0.32849939]
[1750707775710,0.76550719,102890.0,102880.0,0.53262059]
[1750707775942,0.76550719,102890.0,102880.0,0.32849939]
[1750707776298,0.76550719,102890.0,102880.0,0.33821945]
[1750707776941,0.76550719,102890.0,102880.0,0.32849939]
[1750707777160,0.76550719,102890.0,102880.0,0.15329939]
[1750707777377,0.76550719,102890.0,102880.0,0.32837939]
[1750707777804,0.76550719,102890.0,102880.0,0.33809945]
[1750707778005,0.76550719,102890.0,102880.0,0.32837939]
[1750707778213,0.76550719,102890.0,102880.0,0.33809945]
[1750707778678,0.76550719,102890.0,102880.0,0.53250069]
[1750707778870,0.76550719,102890.0,102880.0,0.54222056]
[1750707779080,0.76550719,102890.0,102880.0,0.32837939]
[1750707779447,0.76550719,102890.0,102880.0,0.33809935]
[1750707779619,0.76550719,102890.0,102880.0,0.53250059]
[1750707780567,0.76550719,102890.0,102880.0,0.32837939]
[1750707780964,0.76550719,102890.0,102880.0,0.52278063]
[1750707781162,0.76550719,102890.0,102880.0,0.32837939]
[1750707781704,0.76550719,102890.0,102880.0,0.27957939]
[1750707782325,0.76550719,102890.0,102880.0,0.30387939]
[1750707782771,0.76550719,102890.0,102880.0,0.53470059]
[1750707783380,0.76550719,102890.0,102880.0,0.55413967]
[1750707783590,0.3401,102890.0,102880.0,0.56385916]
[1750707783812,0.0001,102890.0,102880.0,0.56385916]
[1750707784240,0.42550719,102890.0,102880.0,0.56385916]
[1750707784444,0.76550719,102890.0,102880.0,0.56385916]
[1750707784714,0.76550719,102890.0,102880.0,0.53470059]
[1750707784898,0.76550719,102890.0,102880.0,0.55413967]
[1750707785105,0.3401,102890.0,102880.0,0.55413967]
[1750707785318,0.76550719,102890.0,102880.0,0.55413967]
[1750707785903,0.3401,102890.0,102880.0,0.55413967]
[1750707786069,0.76550719,102890.0,102880.0,0.55413967]
[1750707786268,0.76550719,102890.0,102880.0,0.55393967]
[1750707787090,0.3401,102890.0,102880.0,0.85013967]
[1750707788369,0.76550719,102890.0,102880.0,0.85013967]
[1750707788854,0.76550719,102890.0,102880.0,0.85005967]
[1750707789053,0.76550719,102890.0,102880.0,0.85005985]
[1750707789180,0.76550719,102890.0,102880.0,0.85977934]
[1750707789380,0.76550719,102890.0,102880.0,0.86949874]
[1750707789879,0.76550719,102890.0,102880.0,0.84034036]
[1750707790124,0.76550719,102890.0,102880.0,0.67526004]
[1750707790333,0.76550719,102890.0,102880.0,0.54406036]
[1750707790696,0.76550719,102890.0,102880.0,0.55378004]
[1750707791074,0.76550719,102890.0,102880.0,0.56349953]
[1750707791493,0.76550719,102890.0,102880.0,0.57321893]
[1750707791882,0.76550719,102890.0,102880.0,0.56349953]
[1750707792139,0.76550719,102890.0,102880.0,0.57321893]
[1750707792348,0.76550719,102890.0,102880.0,0.56349953]
[1750707792919,0.76550719,102890.0,102880.0,0.57321893]
[1750707795480,0.3401,102890.0,102880.0,0.57321893]
[1750707795681,0.76550719,102890.0,102880.0,0.57321893]
[1750707796335,0.76550719,102890.0,102880.0,0.86941893]
[1750707797587,0.3401,102890.0,102880.0,0.86941893]
[1750707797790,0.76550719,102890.0,102880.0,0.86941893]
[1750707799168,0.76550719,102890.0,102880.0,0.86921893]
[1750707800101,0.3401,102890.0,102880.0,0.86921893]
[1750707800305,0.76550719,102890.0,102880.0,0.86921893]
[1750707811070,0.3401,102890.0,102880.0,0.85921944]
[1750707811270,0.76550719,102890.0,102880.0,0.85921944]
[1750707814763,0.76404025,102890.0,102880.0,0.85921944]
[1750707819712,0.33863306,102890.0,102880.0,0.85921944]
[1750707819924,0.76404025,102890.0,102880.0,0.85921944]
[1750707820583,0.33863306,102890.0,102880.0,0.85921944]
[1750707820804,0.76404025,102890.0,102880.0,0.85921944]
[1750707824775,0.34,102900.0,102890.0,0.27333855]
[1750707824999,0.34,102900.0,102890.0,0.37363794]
[1750707825719,0.76540719,102900.0,102890.0,0.37363794]
[1750707826178,0.76540719,102900.0,102890.0,0.37563794]
[1750707826395,0.76540719,102900.0,102890.0,0.37763794]
[1750707827306,0.00244,102910.0,102900.0,0.22351682]
[1750707827530,0.34244,102910.0,102900.0,0.54737621]
[1750707827741,0.76784719,102910.0,102900.0,0.54737621]
[1750707828797,0.34244,102910.0,102900.0,0.84357621]
[1750707829013,0.76784719,102910.0,102900.0,0.84357621]
[1750707831550,0.76784719,102910.0,102900.0,0.66981621]
[1750707831765,0.76784719,102910.0,102900.0,0.84349621]
[1750707835347,0.76784719,102910.0,102900.0,0.82406091]
[1750707835553,0.76784719,102910.0,102900.0,0.7839787]
[1750707835772,0.76784719,102910.0,102900.0,0.7936963]
[1750707836157,0.76784719,102910.0,102900.0,0.803414]
[1750707836363,0.76784719,102910.0,102900.0,0.7936964]
[1750707836785,0.76784719,102910.0,102900.0,0.76454284]
[1750707837001,0.76784719,102910.0,102900.0,0.7839787]
[1750707837416,0.81854719,102910.0,102900.0,0.76438284]
[1750707837616,0.81854719,102910.0,102900.0,0.78381889]
[1750707837820,0.81854719,102910.0,102900.0,0.59086284]
[1750707838024,0.81854719,102910.0,102900.0,0.78373908]
[1750707838240,0.81854719,102910.0,102900.0,0.77402101]
[1750707839081,0.81854719,102910.0,102900.0,0.76430284]
[1750707839302,0.81854719,102910.0,102900.0,0.77402101]
[1750707839554,0.81854719,102910.0,102900.0,0.78373908]
[1750707839758,0.81854719,102910.0,102900.0,0.76430284]
[1750707839963,0.81854719,102910.0,102900.0,0.56993939]
[1750707840180,1.24395438,102910.0,102900.0,0.76430284]
[1750707840401,1.24395438,102910.0,102900.0,0.39649939]
[1750707840613,1.24395438,102910.0,102900.0,0.4696]
[1750707841494,0.81854719,102910.0,102900.0,0.4696]
[1750707841952,0.81854719,102910.0,102900.0,0.1734]
[1750707843290,0.81854719,102910.0,102900.0,0.17332]
[1750707843634,1.24395438,102910.0,102900.0,0.17332]
[1750707844879,0.90151438,102910.0,102900.0,0.17332]
[1750707845240,0.87621438,102910.0,102900.0,0.17324]
[1750707845556,0.90101438,102910.0,102900.0,0.17324]
[1750707847311,0.90101438,102910.0,102900.0,0.36760345]
[1750707847905,0.3902,102910.0,102900.0,0.36760345]
[1750707848111,0.79020719,102910.0,102900.0,0.17324]
[1750707848542,0.81470719,102910.0,102900.0,0.17324]
[1750707848901,1.24011438,102910.0,102900.0,0.17324]
[1750707849292,1.24011438,102910.0,102890.0,0.44553443]
[1750707849504,0.85081438,102900.0,102890.0,0.54583382]
[1750707850992,1.19081438,102900.0,102890.0,0.54783382]
[1750707851438,1.19081438,102900.0,102890.0,0.54783448]
[1750707851682,1.19081438,102900.0,102890.0,0.29667809]
[1750707851890,1.21621438,102900.0,102890.0,0.47951711]
[1750707852109,1.19081438,102900.0,102890.0,0.4815172]
[1750707852348,1.19081438,102900.0,102890.0,0.48152085]
[1750707852558,1.19081438,102900.0,102890.0,0.49123987]
[1750707852765,1.19081438,102900.0,102890.0,0.50095879]
[1750707852972,1.19081438,102900.0,102890.0,0.51067752]
[1750707853407,1.19081438,102900.0,102890.0,0.52039616]
[1750707853630,1.19081438,102900.0,102890.0,0.50095841]
[1750707854247,1.19081438,102900.0,102890.0,0.51067705]
[1750707854457,1.19081438,102900.0,102890.0,0.5680956]
[1750707854699,1.19081438,102900.0,102890.0,0.55837705]
[1750707855754,1.19081438,102900.0,102890.0,0.5680956]
[1750707856284,1.19081438,102900.0,102890.0,0.55837705]
[1750707856485,1.19081438,102900.0,102890.0,0.54865841]
[1750707856689,1.19081438,102900.0,102890.0,0.54865851]
[1750707857014,1.19081438,102900.0,102890.0,0.55837724]
[1750707857367,1.19081438,102900.0,102890.0,0.53427724]
[1750707857968,1.19081438,102900.0,102890.0,0.54399588]
[1750707858497,1.19081438,102900.0,102890.0,0.54399541]
[1750707858712,1.19081438,102900.0,102890.0,0.53427686]
[1750707858931,1.19081438,102900.0,102890.0,0.52455822]
[1750707859161,1.19081438,102900.0,102890.0,0.51483949]
[1750707859366,1.19081438,102900.0,102890.0,0.48152076]
[1750707859563,1.19081438,102900.0,102890.0,0.49123968]
[1750707860196,1.19081438,102900.0,102890.0,0.48152085]
[1750707860368,1.19081438,102900.0,102890.0,0.49123987]
[1750707860564,1.19081438,102900.0,102890.0,0.5009587]
[1750707860860,1.19081438,102900.0,102890.0,0.50095879]
[1750707861076,1.19081438,102900.0,102890.0,0.51067762]
[1750707861280,1.19081438,102900.0,102890.0,0.50095879]
[1750707861679,1.19081438,102900.0,102890.0,0.52039616]
[1750707861949,1.19081438,102900.0,102890.0,0.34727616]
[1750707862140,1.19081438,102900.0,102890.0,0.33755752]
[1750707862338,1.19081438,102900.0,102890.0,0.34727635]
[1750707862550,1.19081438,102900.0,102890.0,0.34727579]
[1750707862910,1.19081438,102900.0,102890.0,0.34727588]
[1750707863583,1.19081438,102900.0,102890.0,0.34727494]
[1750707863780,1.19081438,102900.0,102890.0,0.33755649]
[1750707864014,1.19081438,102900.0,102890.0,0.3181193]
[1750707864716,1.19081438,102900.0,102890.0,0.32783794]
[1750707865168,1.19081438,102900.0,102890.0,0.33755649]
[1750707865581,1.19081438,102900.0,102890.0,0.32783794]
[1750707865779,1.19081438,102900.0,102890.0,0.33755649]
[1750707866325,1.19081438,102900.0,102890.0,0.34727494]
[1750707866522,1.19081438,102900.0,102890.0,0.33755649]
[1750707866786,1.19081438,102900.0,102890.0,0.34727494]
[1750707867204,1.19081438,102900.0,102890.0,0.32783794]
[1750707867408,1.19081438,102900.0,102890.0,0.31811968]
[1750707867611,1.19081438,102900.0,102890.0,0.3278386]
[1750707867825,1.19081438,102900.0,102890.0,0.33755733]
[1750707868028,1.19091438,102900.0,102890.0,0.33755733]
[1750707868455,1.19091438,102900.0,102890.0,0.39537597]
[1750707868649,1.19091438,102900.0,102890.0,0.39537531]
[1750707868864,0.3401,102900.0,102890.0,0.39537531]
[1750707869077,0.3401,102900.0,102890.0,0.31537531]
[1750707869287,0.0001,102900.0,102890.0,0.31537531]
[1750707870326,0.0001,102900.0,102890.0,0.61157531]
[1750707878142,0.42550719,102900.0,102890.0,0.61157531]
[1750707880395,0.0001,102900.0,102890.0,0.61157531]
[1750707880619,0.42550719,102900.0,102890.0,0.61157531]
[1750707883814,0.0001,102900.0,102890.0,0.61157531]
[1750707884066,0.42550719,102900.0,102890.0,0.61157531]
[1750707890452,0.85091438,102900.0,102890.0,0.58757531]
[1750707891114,0.85091438,102900.0,102890.0,0.56347531]
[1750707891291,0.85091438,102900.0,102890.0,0.58607531]
[1750707891543,0.42550719,102900.0,102890.0,0.58607531]
[1750707891949,0.42550719,102900.0,102890.0,0.60877531]
[1750707892218,0.42550719,102900.0,102890.0,0.60817531]
[1750707893735,0.0001,102900.0,102890.0,0.60817531]
[1750707893945,0.42550719,102900.0,102890.0,0.60817531]
[1750707896242,0.42550719,102900.0,102890.0,0.56287531]
[1750707898719,1.19091438,102900.0,102890.0,0.52400066]
[1750707898940,1.23981438,102900.0,102890.0,0.71515803]
[1750707899149,1.23981438,102900.0,102890.0,0.69572066]
[1750707899353,1.23981438,102900.0,102890.0,0.67598137]
[1750707899758,1.23981438,102900.0,102890.0,0.38950029]
[1750707899934,1.23981438,102900.0,102890.0,0.21782029]
[1750707900095,1.23981438,102900.0,102890.0,0.38950029]
[1750707900294,1.23981438,102900.0,102890.0,0.38950048]
[1750707900683,0.389,102900.0,102890.0,0.40893823]
[1750707900889,1.19091438,102900.0,102890.0,0.41865621]
[1750707901085,1.19091438,102900.0,102890.0,0.40893776]
[1750707901309,1.21381438,102900.0,102890.0,0.39921912]
[1750707901667,1.23671438,102900.0,102890.0,0.38950029]
[1750707901850,1.23671438,102900.0,102890.0,0.40893766]
[1750707902070,1.21381438,102900.0,102890.0,0.41865621]
[1750707902272,1.19091438,102900.0,102890.0,0.41865564]
[1750707902480,1.19091438,102900.0,102890.0,0.39921864]
[1750707902705,1.19091438,102900.0,102890.0,0.40893719]
[1750707902911,1.19091438,102900.0,102890.0,0.39921864]
[1750707903131,1.19091438,102900.0,102890.0,0.3895001]
[1750707903539,1.23991438,102900.0,102890.0,0.37978146]
[1750707903751,1.23991438,102900.0,102890.0,0.37970146]
[1750707903965,1.23991438,102900.0,102890.0,0.3991394]
[1750707904361,1.23991438,102900.0,102890.0,0.38942048]
[1750707904563,1.23991438,102900.0,102890.0,0.39913931]
[1750707904741,1.23991438,102900.0,102890.0,0.3991394]
[1750707905597,1.23991438,102900.0,102890.0,0.38942048]
[1750707905805,1.23991438,102900.0,102890.0,0.37970146]
[1750707905965,0.3891,102900.0,102890.0,0.38942048]
[1750707906167,1.23991438,102900.0,102890.0,0.3991394]
[1750707906367,1.23991438,102900.0,102890.0,0.37970146]
[1750707906582,1.23991438,102900.0,102890.0,0.1756]
[1750707906914,0.89981438,102900.0,102890.0,0.37970127]
[1750707907078,0.85081438,102900.0,102890.0,0.38942]
[1750707907656,0.85081438,102900.0,102890.0,0.39913864]
[1750707908617,0.85081438,102900.0,102890.0,0.3894201]
[1750707908821,0.85081438,102900.0,102890.0,0.37970137]
[1750707909027,1.19081438,102900.0,102890.0,0.38942048]
[1750707909230,1.19081438,102900.0,102890.0,0.37970146]
[1750707909465,1.19081438,102900.0,102890.0,0.38942048]
[1750707909675,1.19081438,102900.0,102890.0,0.39913931]
[1750707909886,1.19081438,102900.0,102890.0,0.38942048]
[1750707910531,1.19081438,102900.0,102890.0,0.39913931]
[1750707910943,1.19081438,102900.0,102890.0,0.3991394]
[1750707911354,1.19081438,102900.0,102890.0,0.41857696]
[1750707911554,1.19081438,102900.0,102890.0,0.40885823]
[1750707911775,1.19081438,102900.0,102890.0,0.3991394]
[1750707912319,1.19081438,102900.0,102890.0,0.38942048]
[1750707912521,1.19081438,102900.0,102890.0,0.3991394]
[1750707912727,1.19081438,102900.0,102890.0,0.40885823]
[1750707913112,1.19081438,102900.0,102890.0,0.41857687]
[1750707913421,1.19081438,102900.0,102890.0,0.41857696]
[1750707913628,1.19081438,102900.0,102890.0,0.40885823]
[1750707914007,1.19081438,102900.0,102890.0,0.41857696]
[1750707914411,1.19081438,102900.0,102890.0,0.40885823]
[1750707914874,1.19081438,102900.0,102890.0,0.41857696]
[1750707915235,1.19081438,102900.0,102890.0,0.41857649]
[1750707916084,1.19081438,102900.0,102890.0,0.39913912]
[1750707916345,1.19081438,102900.0,102890.0,0.39913902]
[1750707917095,1.19081438,102900.0,102890.0,0.40885766]
[1750707917478,1.19081438,102900.0,102890.0,0.39913902]
[1750707917808,1.19081438,102900.0,102890.0,0.40885766]
[1750707918296,1.19081438,102900.0,102890.0,0.39913902]
[1750707918636,1.19081438,102900.0,102890.0,0.40885766]
[1750707918850,1.19081438,102900.0,102890.0,0.39913902]
[1750707919269,1.19081438,102900.0,102890.0,0.40885776]
[1750707919482,1.19081438,102900.0,102890.0,0.38942029]
[1750707919699,1.19081438,102900.0,102890.0,0.40885776]
[1750707920230,1.19081438,102900.0,102890.0,0.39913912]
[1750707920436,1.19117404,102900.0,102890.0,0.40885785]
[1750707921029,1.19117404,102900.0,102890.0,0.39913912]
[1750707921231,1.19117404,102900.0,102890.0,0.40885785]
[1750707921648,1.19117404,102900.0,102890.0,0.39913912]
[1750707922841,1.19117404,102900.0,102890.0,0.40885785]
[1750707923051,1.19117404,102900.0,102890.0,0.43175785]
[1750707923263,1.19117404,102900.0,102890.0,0.44147649]
[1750707923514,1.19117404,102900.0,102890.0,0.44147602]
[1750707923732,1.19117404,102900.0,102890.0,0.42203883]
[1750707923959,1.19117404,102900.0,102890.0,0.43175747]
[1750707924375,1.19117404,102900.0,102890.0,0.42203883]
[1750707924636,1.19117404,102900.0,102890.0,0.43175747]
[1750707925231,1.19117404,102900.0,102890.0,0.39913883]
[1750707925451,1.19117404,102900.0,102890.0,0.2178201]
[1750707925671,1.66606106,102900.0,102890.0,0.17496]
[1750707927437,1.66606106,102900.0,102890.0,0.004]
[1750707927663,1.66606106,102900.0,102890.0,0.17496]
[1750707927891,1.24047404,102900.0,102890.0,0.18467911]
[1750707928117,1.19117404,102900.0,102890.0,0.17496]
[1750707928336,1.19117404,102900.0,102890.0,0.18467911]
[1750707928592,1.19117404,102900.0,102890.0,0.17496]
[1750707928817,1.23937404,102900.0,102890.0,0.17496]
[1750707929442,1.66496106,102900.0,102890.0,0.17496]
[1750707930294,0.3882,102900.0,102890.0,0.17484]
[1750707930504,1.2395987,102900.0,102890.0,0.17484]
[1750707932068,1.2395987,102900.0,102890.0,0.004]
[1750707932487,0.40274085,102890.0,102860.0,0.0477]
[1750707932699,1.1913987,102870.0,102860.0,0.17096]
[1750707932924,1.1913987,102870.0,102860.0,0.37512099]
[1750707933336,1.1913987,102870.0,102860.0,0.20436099]
[1750707933542,1.21761319,102870.0,102860.0,0.37512099]
[1750707933979,1.21770255,102870.0,102860.0,0.40754265]
[1750707934177,1.21770255,102870.0,102860.0,0.44076441]
[1750707934798,1.21770255,102870.0,102860.0,0.27972588]
[1750707935028,0.34008936,102870.0,102860.0,0.56146656]
[1750707935778,0.34008936,102870.0,102860.0,0.56346656]
[1750707936636,8.936e-05,102870.0,102860.0,1.28536591]
[1750707936854,8.936e-05,102870.0,102860.0,1.34990676]
[1750707937065,0.76569935,102910.0,102900.0,0.27191682]
[1750707937276,0.76569935,102910.0,102900.0,0.54289621]
[1750707937476,0.76578891,102910.0,102900.0,0.54289621]
[1750707937884,0.76578891,102910.0,102900.0,0.55261381]
[1750707938100,0.79111706,102910.0,102900.0,0.55261381]
[1750707938305,0.79111706,102910.0,102900.0,0.54791381]
[1750707938938,0.79311706,102910.0,102900.0,0.54791381]
[1750707939467,0.79711706,102910.0,102900.0,0.54791381]
[1750707939677,0.79711706,102910.0,102900.0,0.37723381]
[1750707939885,0.79711706,102910.0,102900.0,0.5381164]
[1750707940505,0.79711706,102910.0,102900.0,0.54783391]
[1750707941889,0.79711706,102910.0,102900.0,0.547834]
[1750707942506,0.79711706,102910.0,102900.0,0.55755151]
[1750707943119,0.79711706,102910.0,102900.0,0.547834]
[1750707943331,0.79711706,102910.0,102900.0,0.55755151]
[1750707943546,0.37141771,102910.0,102900.0,0.52338091]
[1750707943755,0.79711706,102910.0,102900.0,0.51366284]
[1750707943966,0.34,102900.0,102890.0,0.56662194]
[1750707944186,0.76569935,102900.0,102890.0,0.83740133]
[1750707944389,0.76569935,102900.0,102890.0,0.84711988]
[1750707944597,1.1913987,102900.0,102890.0,0.77106377]
[1750707944808,1.1913987,102900.0,102890.0,0.29021733]
[1750707945015,1.1913987,102900.0,102890.0,0.29993616]
[1750707945228,1.1923987,102900.0,102890.0,0.51373873]
[1750707945439,0.76669935,102900.0,102890.0,0.56063816]
[1750707945855,0.76769935,102900.0,102890.0,0.56063816]
[1750707948154,0.76769935,102900.0,102890.0,0.55091962]
[1750707948375,0.76769935,102900.0,102890.0,0.56063807]
[1750707961644,0.76769935,102900.0,102890.0,0.37072089]
[1750707961849,1.1933987,102900.0,102890.0,0.48414262]
[1750707962065,1.2415987,102900.0,102890.0,0.17]
[1750707962309,0.0466,102890.0,102870.0,0.19437389]
[1750707962513,0.76569935,102880.0,102870.0,0.2040948]
[1750707962663,0.76569935,102880.0,102870.0,0.38377561]
[1750707963059,0.76569935,102880.0,102870.0,0.38382205]
[1750707963631,0.76569935,102880.0,102870.0,0.002]
[1750707963837,0.81309935,102880.0,102870.0,0.17196]
[1750707964041,0.81309935,102880.0,102870.0,0.17096]
[1750707964430,0.81309935,102880.0,102870.0,0.17396]
[1750707965148,0.81309935,102880.0,102870.0,0.004]
[1750707965351,0.81309935,102880.0,102870.0,0.37710114]
[1750707965508,0.76569935,102880.0,102870.0,0.38010114]
[1750707965693,0.76569935,102880.0,102870.0,0.17596]
[1750707965895,0.76569935,102880.0,102870.0,0.182681]
[1750707966101,0.76969935,102880.0,102870.0,0.179681]
[1750707966513,0.77169935,102880.0,102870.0,0.37410114]
[1750707966723,0.77169935,102880.0,102870.0,0.38382205]
[1750707967283,0.77169935,102880.0,102870.0,0.39354286]
[1750707967525,0.77169935,102880.0,102870.0,0.37410114]
[1750707967747,0.77169935,102880.0,102870.0,0.36438014]
[1750707968160,0.77169935,102880.0,102870.0,0.179681]
[1750707968377,0.346,102880.0,102870.0,0.39354239]
[1750707968591,0.77169935,102880.0,102870.0,0.38382186]
[1750707968814,0.77169935,102880.0,102870.0,0.39354248]
[1750707969070,0.77169935,102880.0,102870.0,0.40326292]
[1750707969284,0.346,102880.0,102870.0,0.56038265]
[1750707969497,0.77169935,102880.0,102870.0,0.56038265]
[1750707969713,0.77179935,102880.0,102870.0,0.56038265]
[1750707969928,0.77179935,102880.0,102870.0,0.48412125]
[1750707970149,0.77179935,102880.0,102870.0,0.30444053]
[1750707970331,0.77179935,102880.0,102870.0,0.48396144]
[1750707970570,0.77179935,102880.0,102870.0,0.1698]
[1750707972159,0.77179935,102880.0,102870.0,0.179521]
[1750707972373,0.77179935,102880.0,102870.0,0.1698]
[1750707972582,0.77179935,102880.0,102870.0,0.179521]
[1750707972790,0.77179935,102880.0,102870.0,0.1698]
[1750707973033,0.77179935,102880.0,102870.0,0.179521]
[1750707973777,0.77179935,102880.0,102870.0,0.38366205]